{"text_format":"3","workbook":"xlsx","n_sheets":1,"sheets":["Voorraadlijst"],"not_rendered":{"images":1,"defined_names":3},"read":"whole","date_system":"1900"}

{"sheet":"Voorraadlijst","index":0,"n_rows":28,"n_cols":13,"rows_kept":28}
[{"$nulls":12}," "]
[{"$nulls":10},"Artikelen markeren voor bijbestelling?","Ja"]
[null,"Bijbestellen","Voorraad-ID","Naam","Beschrijving","Prijs per eenheid","Hoeveelheid in voorraad","Voorraadwaarde","Bijbestelniveau","Bijbesteltijd in dagen","Aantal in bijbestelling","Niet meer leverbaar?"]
[null,{"$f":"IFERROR((Inventory_List_Table[[#This Row],[Hoeveelheid in voorraad]]<=Inventory_List_Table[[#This Row],[Bijbestelniveau]])*(Inventory_List_Table[[#This Row],[Niet meer leverbaar?]]=\"\")*valHighlight,0)","v":1},"IN0001","Artikel 1","Beschr. 1",{"v":51,"d":"€ 51.00"},25,{"$f":"Inventory_List_Table[[#This Row],[Prijs per eenheid]]*Inventory_List_Table[[#This Row],[Hoeveelheid in voorraad]]","v":{"v":1275,"d":"€ 1,275.00"}},29,13,50]
[null,{"$f":"IFERROR((Inventory_List_Table[[#This Row],[Hoeveelheid in voorraad]]<=Inventory_List_Table[[#This Row],[Bijbestelniveau]])*(Inventory_List_Table[[#This Row],[Niet meer leverbaar?]]=\"\")*valHighlight,0)","v":1},"IN0002","Artikel 2","Beschr. 2",{"v":93,"d":"€ 93.00"},132,{"$f":"Inventory_List_Table[[#This Row],[Prijs per eenheid]]*Inventory_List_Table[[#This Row],[Hoeveelheid in voorraad]]","v":{"v":12276,"d":"€ 12,276.00"}},231,4,50]
[null,{"$f":"IFERROR((Inventory_List_Table[[#This Row],[Hoeveelheid in voorraad]]<=Inventory_List_Table[[#This Row],[Bijbestelniveau]])*(Inventory_List_Table[[#This Row],[Niet meer leverbaar?]]=\"\")*valHighlight,0)","v":0},"IN0003","Artikel 3","Beschr. 3",{"v":57,"d":"€ 57.00"},151,{"$f":"Inventory_List_Table[[#This Row],[Prijs per eenheid]]*Inventory_List_Table[[#This Row],[Hoeveelheid in voorraad]]","v":{"v":8607,"d":"€ 8,607.00"}},114,11,150]
[null,{"$f":"IFERROR((Inventory_List_Table[[#This Row],[Hoeveelheid in voorraad]]<=Inventory_List_Table[[#This Row],[Bijbestelniveau]])*(Inventory_List_Table[[#This Row],[Niet meer leverbaar?]]=\"\")*valHighlight,0)","v":0},"IN0004","Artikel 4","Beschr. 4",{"v":19,"d":"€ 19.00"},186,{"$f":"Inventory_List_Table[[#This Row],[Prijs per eenheid]]*Inventory_List_Table[[#This Row],[Hoeveelheid in voorraad]]","v":{"v":3534,"d":"€ 3,534.00"}},158,6,50]
[null,{"$f":"IFERROR((Inventory_List_Table[[#This Row],[Hoeveelheid in voorraad]]<=Inventory_List_Table[[#This Row],[Bijbestelniveau]])*(Inventory_List_Table[[#This Row],[Niet meer leverbaar?]]=\"\")*valHighlight,0)","v":0},"IN0005","Artikel 5","Beschr. 5",{"v":75,"d":"€ 75.00"},62,{"$f":"Inventory_List_Table[[#This Row],[Prijs per eenheid]]*Inventory_List_Table[[#This Row],[Hoeveelheid in voorraad]]","v":{"v":4650,"d":"€ 4,650.00"}},39,12,50]
[null,{"$f":"IFERROR((Inventory_List_Table[[#This Row],[Hoeveelheid in voorraad]]<=Inventory_List_Table[[#This Row],[Bijbestelniveau]])*(Inventory_List_Table[[#This Row],[Niet meer leverbaar?]]=\"\")*valHighlight,0)","v":1},"IN0006","Artikel 6","Beschr. 6",{"v":11,"d":"€ 11.00"},5,{"$f":"Inventory_List_Table[[#This Row],[Prijs per eenheid]]*Inventory_List_Table[[#This Row],[Hoeveelheid in voorraad]]","v":{"v":55,"d":"€ 55.00"}},9,13,150]
[null,{"$f":"IFERROR((Inventory_List_Table[[#This Row],[Hoeveelheid in voorraad]]<=Inventory_List_Table[[#This Row],[Bijbestelniveau]])*(Inventory_List_Table[[#This Row],[Niet meer leverbaar?]]=\"\")*valHighlight,0)","v":0},"IN0007","Artikel 7","Beschr. 7",{"v":56,"d":"€ 56.00"},58,{"$f":"Inventory_List_Table[[#This Row],[Prijs per eenheid]]*Inventory_List_Table[[#This Row],[Hoeveelheid in voorraad]]","v":{"v":3248,"d":"€ 3,248.00"}},109,7,100,"Ja"]
[null,{"$f":"IFERROR((Inventory_List_Table[[#This Row],[Hoeveelheid in voorraad]]<=Inventory_List_Table[[#This Row],[Bijbestelniveau]])*(Inventory_List_Table[[#This Row],[Niet meer leverbaar?]]=\"\")*valHighlight,0)","v":1},"IN0008","Artikel 8","Beschr. 8",{"v":38,"d":"€ 38.00"},101,{"$f":"Inventory_List_Table[[#This Row],[Prijs per eenheid]]*Inventory_List_Table[[#This Row],[Hoeveelheid in voorraad]]","v":{"v":3838,"d":"€ 3,838.00"}},162,3,100]
[null,{"$f":"IFERROR((Inventory_List_Table[[#This Row],[Hoeveelheid in voorraad]]<=Inventory_List_Table[[#This Row],[Bijbestelniveau]])*(Inventory_List_Table[[#This Row],[Niet meer leverbaar?]]=\"\")*valHighlight,0)","v":0},"IN0009","Artikel 9","Beschr. 9",{"v":59,"d":"€ 59.00"},122,{"$f":"Inventory_List_Table[[#This Row],[Prijs per eenheid]]*Inventory_List_Table[[#This Row],[Hoeveelheid in voorraad]]","v":{"v":7198,"d":"€ 7,198.00"}},82,3,150]
[null,{"$f":"IFERROR((Inventory_List_Table[[#This Row],[Hoeveelheid in voorraad]]<=Inventory_List_Table[[#This Row],[Bijbestelniveau]])*(Inventory_List_Table[[#This Row],[Niet meer leverbaar?]]=\"\")*valHighlight,0)","v":1},"IN0010","Artikel 10","Beschr. 10",{"v":50,"d":"€ 50.00"},175,{"$f":"Inventory_List_Table[[#This Row],[Prijs per eenheid]]*Inventory_List_Table[[#This Row],[Hoeveelheid in voorraad]]","v":{"v":8750,"d":"€ 8,750.00"}},283,8,150]
[null,{"$f":"IFERROR((Inventory_List_Table[[#This Row],[Hoeveelheid in voorraad]]<=Inventory_List_Table[[#This Row],[Bijbestelniveau]])*(Inventory_List_Table[[#This Row],[Niet meer leverbaar?]]=\"\")*valHighlight,0)","v":1},"IN0011","Artikel 11","Beschr. 11",{"v":59,"d":"€ 59.00"},176,{"$f":"Inventory_List_Table[[#This Row],[Prijs per eenheid]]*Inventory_List_Table[[#This Row],[Hoeveelheid in voorraad]]","v":{"v":10384,"d":"€ 10,384.00"}},229,1,100]
[null,{"$f":"IFERROR((Inventory_List_Table[[#This Row],[Hoeveelheid in voorraad]]<=Inventory_List_Table[[#This Row],[Bijbestelniveau]])*(Inventory_List_Table[[#This Row],[Niet meer leverbaar?]]=\"\")*valHighlight,0)","v":1},"IN0012","Artikel 12","Beschr. 12",{"v":18,"d":"€ 18.00"},22,{"$f":"Inventory_List_Table[[#This Row],[Prijs per eenheid]]*Inventory_List_Table[[#This Row],[Hoeveelheid in voorraad]]","v":{"v":396,"d":"€ 396.00"}},36,12,50]
[null,{"$f":"IFERROR((Inventory_List_Table[[#This Row],[Hoeveelheid in voorraad]]<=Inventory_List_Table[[#This Row],[Bijbestelniveau]])*(Inventory_List_Table[[#This Row],[Niet meer leverbaar?]]=\"\")*valHighlight,0)","v":1},"IN0013","Artikel 13","Beschr. 13",{"v":26,"d":"€ 26.00"},72,{"$f":"Inventory_List_Table[[#This Row],[Prijs per eenheid]]*Inventory_List_Table[[#This Row],[Hoeveelheid in voorraad]]","v":{"v":1872,"d":"€ 1,872.00"}},102,9,100]
[null,{"$f":"IFERROR((Inventory_List_Table[[#This Row],[Hoeveelheid in voorraad]]<=Inventory_List_Table[[#This Row],[Bijbestelniveau]])*(Inventory_List_Table[[#This Row],[Niet meer leverbaar?]]=\"\")*valHighlight,0)","v":1},"IN0014","Artikel 14","Beschr. 14",{"v":42,"d":"€ 42.00"},62,{"$f":"Inventory_List_Table[[#This Row],[Prijs per eenheid]]*Inventory_List_Table[[#This Row],[Hoeveelheid in voorraad]]","v":{"v":2604,"d":"€ 2,604.00"}},83,2,100]
[null,{"$f":"IFERROR((Inventory_List_Table[[#This Row],[Hoeveelheid in voorraad]]<=Inventory_List_Table[[#This Row],[Bijbestelniveau]])*(Inventory_List_Table[[#This Row],[Niet meer leverbaar?]]=\"\")*valHighlight,0)","v":0},"IN0015","Artikel 15","Beschr. 15",{"v":32,"d":"€ 32.00"},46,{"$f":"Inventory_List_Table[[#This Row],[Prijs per eenheid]]*Inventory_List_Table[[#This Row],[Hoeveelheid in voorraad]]","v":{"v":1472,"d":"€ 1,472.00"}},23,15,50]
[null,{"$f":"IFERROR((Inventory_List_Table[[#This Row],[Hoeveelheid in voorraad]]<=Inventory_List_Table[[#This Row],[Bijbestelniveau]])*(Inventory_List_Table[[#This Row],[Niet meer leverbaar?]]=\"\")*valHighlight,0)","v":1},"IN0016","Artikel 16","Beschr. 16",{"v":90,"d":"€ 90.00"},96,{"$f":"Inventory_List_Table[[#This Row],[Prijs per eenheid]]*Inventory_List_Table[[#This Row],[Hoeveelheid in voorraad]]","v":{"v":8640,"d":"€ 8,640.00"}},180,3,50]
[null,{"$f":"IFERROR((Inventory_List_Table[[#This Row],[Hoeveelheid in voorraad]]<=Inventory_List_Table[[#This Row],[Bijbestelniveau]])*(Inventory_List_Table[[#This Row],[Niet meer leverbaar?]]=\"\")*valHighlight,0)","v":0},"IN0017","Artikel 17","Beschr. 17",{"v":97,"d":"€ 97.00"},57,{"$f":"Inventory_List_Table[[#This Row],[Prijs per eenheid]]*Inventory_List_Table[[#This Row],[Hoeveelheid in voorraad]]","v":{"v":5529,"d":"€ 5,529.00"}},98,12,50,"Ja"]
[null,{"$f":"IFERROR((Inventory_List_Table[[#This Row],[Hoeveelheid in voorraad]]<=Inventory_List_Table[[#This Row],[Bijbestelniveau]])*(Inventory_List_Table[[#This Row],[Niet meer leverbaar?]]=\"\")*valHighlight,0)","v":1},"IN0018","Artikel 18","Beschr. 18",{"v":12,"d":"€ 12.00"},6,{"$f":"Inventory_List_Table[[#This Row],[Prijs per eenheid]]*Inventory_List_Table[[#This Row],[Hoeveelheid in voorraad]]","v":{"v":72,"d":"€ 72.00"}},7,13,50]
[null,{"$f":"IFERROR((Inventory_List_Table[[#This Row],[Hoeveelheid in voorraad]]<=Inventory_List_Table[[#This Row],[Bijbestelniveau]])*(Inventory_List_Table[[#This Row],[Niet meer leverbaar?]]=\"\")*valHighlight,0)","v":1},"IN0019","Artikel 19","Beschr. 19",{"v":82,"d":"€ 82.00"},143,{"$f":"Inventory_List_Table[[#This Row],[Prijs per eenheid]]*Inventory_List_Table[[#This Row],[Hoeveelheid in voorraad]]","v":{"v":11726,"d":"€ 11,726.00"}},164,12,150]
[null,{"$f":"IFERROR((Inventory_List_Table[[#This Row],[Hoeveelheid in voorraad]]<=Inventory_List_Table[[#This Row],[Bijbestelniveau]])*(Inventory_List_Table[[#This Row],[Niet meer leverbaar?]]=\"\")*valHighlight,0)","v":0},"IN0020","Artikel 20","Beschr. 20",{"v":16,"d":"€ 16.00"},124,{"$f":"Inventory_List_Table[[#This Row],[Prijs per eenheid]]*Inventory_List_Table[[#This Row],[Hoeveelheid in voorraad]]","v":{"v":1984,"d":"€ 1,984.00"}},113,14,50]
[null,{"$f":"IFERROR((Inventory_List_Table[[#This Row],[Hoeveelheid in voorraad]]<=Inventory_List_Table[[#This Row],[Bijbestelniveau]])*(Inventory_List_Table[[#This Row],[Niet meer leverbaar?]]=\"\")*valHighlight,0)","v":0},"IN0021","Artikel 21","Beschr. 21",{"v":19,"d":"€ 19.00"},112,{"$f":"Inventory_List_Table[[#This Row],[Prijs per eenheid]]*Inventory_List_Table[[#This Row],[Hoeveelheid in voorraad]]","v":{"v":2128,"d":"€ 2,128.00"}},75,11,50]
[null,{"$f":"IFERROR((Inventory_List_Table[[#This Row],[Hoeveelheid in voorraad]]<=Inventory_List_Table[[#This Row],[Bijbestelniveau]])*(Inventory_List_Table[[#This Row],[Niet meer leverbaar?]]=\"\")*valHighlight,0)","v":0},"IN0022","Artikel 22","Beschr. 22",{"v":24,"d":"€ 24.00"},182,{"$f":"Inventory_List_Table[[#This Row],[Prijs per eenheid]]*Inventory_List_Table[[#This Row],[Hoeveelheid in voorraad]]","v":{"v":4368,"d":"€ 4,368.00"}},132,15,150]
[null,{"$f":"IFERROR((Inventory_List_Table[[#This Row],[Hoeveelheid in voorraad]]<=Inventory_List_Table[[#This Row],[Bijbestelniveau]])*(Inventory_List_Table[[#This Row],[Niet meer leverbaar?]]=\"\")*valHighlight,0)","v":0},"IN0023","Artikel 23","Beschr. 23",{"v":29,"d":"€ 29.00"},106,{"$f":"Inventory_List_Table[[#This Row],[Prijs per eenheid]]*Inventory_List_Table[[#This Row],[Hoeveelheid in voorraad]]","v":{"v":3074,"d":"€ 3,074.00"}},142,1,150,"Ja"]
[null,{"$f":"IFERROR((Inventory_List_Table[[#This Row],[Hoeveelheid in voorraad]]<=Inventory_List_Table[[#This Row],[Bijbestelniveau]])*(Inventory_List_Table[[#This Row],[Niet meer leverbaar?]]=\"\")*valHighlight,0)","v":0},"IN0024","Artikel 24","Beschr. 24",{"v":75,"d":"€ 75.00"},173,{"$f":"Inventory_List_Table[[#This Row],[Prijs per eenheid]]*Inventory_List_Table[[#This Row],[Hoeveelheid in voorraad]]","v":{"v":12975,"d":"€ 12,975.00"}},127,9,100]
[null,{"$f":"IFERROR((Inventory_List_Table[[#This Row],[Hoeveelheid in voorraad]]<=Inventory_List_Table[[#This Row],[Bijbestelniveau]])*(Inventory_List_Table[[#This Row],[Niet meer leverbaar?]]=\"\")*valHighlight,0)","v":0},"IN0025","Artikel 25","Beschr. 25",{"v":14,"d":"€ 14.00"},28,{"$f":"Inventory_List_Table[[#This Row],[Prijs per eenheid]]*Inventory_List_Table[[#This Row],[Hoeveelheid in voorraad]]","v":{"v":392,"d":"€ 392.00"}},21,8,50]